[Event "Titled Tuesday Blitz February 21 Late 2023"]
[White "Golubev, Mikhail"]
[Black "Stoyanov, Tsvetan"]
[WhiteFideId "14100983"]
[BlackFideId "2917173"]
[WhiteElo "2461"]
[BlackElo "2454"]
[Result "0-1"]
[Round "02"]
[TimeControl "180+2"]
[Date "2023.02.21"]
[WhiteClock "0:00:01"]
[BlackClock "0:00:04"]

1. e4 {[%clk 0:03:00]}  c5 {[%clk 0:03:00]} 2. Nf3 {[%clk 0:03:00]}  d6 {[%clk 0:03:00]} 3. d4 {[%clk 0:03:00]}  cxd4 {[%clk 0:03:00]} 4. Nxd4 {[%clk 0:03:01]}  Nf6 {[%clk 0:03:00]} 5. Nc3 {[%clk 0:03:02]}  a6 {[%clk 0:03:01]} 6. Bc4 {[%clk 0:03:02]}  e6 {[%clk 0:03:01]} 7. O-O {[%clk 0:03:02]}  Be7 {[%clk 0:03:00]} 8. Bb3 {[%clk 0:03:02]}  b5 {[%clk 0:03:00]} 9. Qf3 {[%clk 0:03:00]}  Qc7 {[%clk 0:02:59]} 10. Qg3 {[%clk 0:02:58]}  O-O {[%clk 0:02:59]} 11. Bh6 {[%clk 0:02:57]}  Ne8 {[%clk 0:02:59]} 12. Rad1 {[%clk 0:02:57]}  Bd7 {[%clk 0:02:56]} 13. f4 {[%clk 0:02:49]}  b4 {[%clk 0:02:09]} 14. Nce2 {[%clk 0:02:35]}  Kh8 {[%clk 0:02:02]} 15. Bg5 {[%clk 0:02:32]}  Bxg5 {[%clk 0:02:01]} 16. fxg5 {[%clk 0:02:32]}  Qc5 {[%clk 0:01:47]} 17. Kh1 {[%clk 0:02:27]}  Nc7 {[%clk 0:01:36]} 18. g6 {[%clk 0:01:52]}  hxg6 {[%clk 0:01:30]} 19. Qh4+ {[%clk 0:01:44]}  Kg8 {[%clk 0:01:24]} 20. Rf3 {[%clk 0:01:43]}  Nc6 {[%clk 0:00:50]} 21. Rh3 {[%clk 0:00:36]}  Qh5 {[%clk 0:00:50]} 22. Qg3 {[%clk 0:00:20]}  Qe5 {[%clk 0:00:48]} 23. Qh4 {[%clk 0:00:20]}  f6 {[%clk 0:00:38]} 24. Nf4 {[%clk 0:00:06]}  Kf7 {[%clk 0:00:21]} 25. Nxg6 {[%clk 0:00:03]}  Kxg6 {[%clk 0:00:13]} 26. Nf5 {[%clk 0:00:03]}  Qxf5 {[%clk 0:00:02]} 27. exf5+ {[%clk 0:00:02]}  Kf7 {[%clk 0:00:02]} 28. fxe6+ {[%clk 0:00:02]}  Bxe6 {[%clk 0:00:02]} 29. Qh5+ {[%clk 0:00:02]}  Ke7 {[%clk 0:00:02]} 30. Bxe6 {[%clk 0:00:02]}  Nxe6 {[%clk 0:00:03]} 31. Re1 {[%clk 0:00:02]}  Ne5 {[%clk 0:00:03]} 32. Rxe5 {[%clk 0:00:02]}  dxe5 {[%clk 0:00:03]} 33. Re3 {[%clk 0:00:01]}  Rac8 {[%clk 0:00:04]} 34. h3 {[%clk 0:00:02]}  Rfd8 {[%clk 0:00:04]} 35. Qg4 {[%clk 0:00:01]}  Rxc2 {[%clk 0:00:04]} 0-1


[Site "https://www.chess.com"]

[Event "Titled Tuesday Blitz February 21 Late 2023"]
[White "Tristan, Leonardo"]
[Black "Nilsson, Joakim"]
[WhiteFideId "113816"]
[BlackFideId "1723383"]
[WhiteElo "2545"]
[BlackElo "2188"]
[Result "1-0"]
[Round "02"]
[TimeControl "180+2"]
[Date "2023.02.21"]
[WhiteClock "0:01:29"]
[BlackClock "0:02:28"]

1. d4 {[%clk 0:03:00]}  Nf6 {[%clk 0:02:59]} 2. Nf3 {[%clk 0:03:01]}  e6 {[%clk 0:03:00]} 3. Bf4 {[%clk 0:03:01]}  d5 {[%clk 0:03:00]} 4. e3 {[%clk 0:03:02]}  c5 {[%clk 0:03:00]} 5. Nbd2 {[%clk 0:03:01]}  Nc6 {[%clk 0:03:00]} 6. c3 {[%clk 0:03:01]}  cxd4 {[%clk 0:03:01]} 7. exd4 {[%clk 0:03:01]}  Nh5 {[%clk 0:03:01]} 8. Be3 {[%clk 0:03:01]}  Bd6 {[%clk 0:03:00]} 9. Ne5 {[%clk 0:03:02]}  g6 {[%clk 0:02:59]} 10. Nd3 {[%clk 0:03:02]}  f5 {[%clk 0:02:57]} 11. Nf3 {[%clk 0:02:32]}  O-O {[%clk 0:02:55]} 12. Bh6 {[%clk 0:02:28]}  Re8 {[%clk 0:02:55]} 13. Bg5 {[%clk 0:02:25]}  Qc7 {[%clk 0:02:55]} 14. Be2 {[%clk 0:02:24]}  Nf4 {[%clk 0:02:54]} 15. Nxf4 {[%clk 0:02:23]}  Bxf4 {[%clk 0:02:55]} 16. Bxf4 {[%clk 0:02:24]}  Qxf4 {[%clk 0:02:56]} 17. Qd2 {[%clk 0:02:24]}  Qxd2+ {[%clk 0:02:55]} 18. Kxd2 {[%clk 0:02:25]}  Bd7 {[%clk 0:02:54]} 19. Bb5 {[%clk 0:02:24]}  Nb8 {[%clk 0:02:53]} 20. a4 {[%clk 0:02:22]}  a6 {[%clk 0:02:53]} 21. Bd3 {[%clk 0:02:21]}  Bc6 {[%clk 0:02:52]} 22. a5 {[%clk 0:02:15]}  h6 {[%clk 0:02:51]} 23. h4 {[%clk 0:02:14]}  Nd7 {[%clk 0:02:51]} 24. Rhe1 {[%clk 0:02:14]}  Kf7 {[%clk 0:02:51]} 25. Ne5+ {[%clk 0:02:12]}  Nxe5 {[%clk 0:02:51]} 26. Rxe5 {[%clk 0:02:13]}  Bd7 {[%clk 0:02:50]} 27. Rae1 {[%clk 0:02:13]}  g5 {[%clk 0:02:49]} 28. b3 {[%clk 0:02:05]}  Rg8 {[%clk 0:02:47]} 29. hxg5 {[%clk 0:02:00]}  hxg5 {[%clk 0:02:47]} 30. Bxf5 {[%clk 0:01:59]}  exf5 {[%clk 0:02:40]} 31. Re7+ {[%clk 0:01:59]}  Kg6 {[%clk 0:02:40]} 32. Rxd7 {[%clk 0:02:00]}  Rab8 {[%clk 0:02:40]} 33. Rd6+ {[%clk 0:01:58]}  Kh5 {[%clk 0:02:40]} 34. Rxd5 {[%clk 0:01:58]}  Kg4 {[%clk 0:02:41]} 35. Ree5 {[%clk 0:01:56]}  f4 {[%clk 0:02:41]} 36. f3+ {[%clk 0:01:54]}  Kh4 {[%clk 0:02:41]} 37. Ke2 {[%clk 0:01:55]}  b6 {[%clk 0:02:42]} 38. b4 {[%clk 0:01:53]}  bxa5 {[%clk 0:02:42]} 39. Rxa5 {[%clk 0:01:54]}  Rbc8 {[%clk 0:02:42]} 40. Rac5 {[%clk 0:01:53]}  Rb8 {[%clk 0:02:40]} 41. Kf2 {[%clk 0:01:53]}  Rb6 {[%clk 0:02:37]} 42. d5 {[%clk 0:01:46]}  Rd6 {[%clk 0:02:37]} 43. Rc6 {[%clk 0:01:44]}  Rgd8 {[%clk 0:02:37]} 44. Rxd6 {[%clk 0:01:41]}  Rxd6 {[%clk 0:02:38]} 45. Kg1 {[%clk 0:01:34]}  g4 {[%clk 0:02:36]} 46. fxg4 {[%clk 0:01:33]}  Kxg4 {[%clk 0:02:37]} 47. Kf2 {[%clk 0:01:33]}  Rh6 {[%clk 0:02:35]} 48. Re4 {[%clk 0:01:30]}  Kf5 {[%clk 0:02:35]} 49. Rd4 {[%clk 0:01:30]}  Ke5 {[%clk 0:02:34]} 50. d6 {[%clk 0:01:30]}  f3 {[%clk 0:02:31]} 51. gxf3 {[%clk 0:01:29]}  Rh2+ {[%clk 0:02:28]} 52. Ke3 {[%clk 0:01:29]} 1-0


[Site "https://www.chess.com"]

[Event "Titled Tuesday Blitz February 21 Late 2023"]
[White "Golubka, Petro"]
[Black "Kovalevsky, Stanislav"]
[WhiteFideId "14114224"]
[BlackFideId "13508598"]
[WhiteElo "2371"]
[BlackElo "2237"]
[Result "1-0"]
[Round "02"]
[TimeControl "180+2"]
[Date "2023.02.21"]
[WhiteClock "0:01:38"]
[BlackClock "0:00:15"]

1. d4 {[%clk 0:03:00]}  d5 {[%clk 0:02:58]} 2. c4 {[%clk 0:03:00]}  c6 {[%clk 0:02:57]} 3. Nc3 {[%clk 0:03:00]}  Nf6 {[%clk 0:02:56]} 4. f3 {[%clk 0:02:59]}  Nbd7 {[%clk 0:02:53]} 5. e4 {[%clk 0:02:58]}  dxe4 {[%clk 0:02:53]} 6. fxe4 {[%clk 0:02:58]}  e5 {[%clk 0:02:53]} 7. d5 {[%clk 0:02:59]}  Bc5 {[%clk 0:02:52]} 8. Bd3 {[%clk 0:02:55]}  Bd4 {[%clk 0:02:29]} 9. Nge2 {[%clk 0:02:53]}  Nc5 {[%clk 0:02:23]} 10. Bc2 {[%clk 0:02:49]}  Bg4 {[%clk 0:02:13]} 11. Bg5 {[%clk 0:02:41]}  Bxc3+ {[%clk 0:02:07]} 12. bxc3 {[%clk 0:02:40]}  Qa5 {[%clk 0:02:07]} 13. Bxf6 {[%clk 0:02:36]}  Bxe2 {[%clk 0:02:03]} 14. Kxe2 {[%clk 0:02:32]}  gxf6 {[%clk 0:02:03]} 15. Qd2 {[%clk 0:02:33]}  O-O-O {[%clk 0:01:48]} 16. Rhf1 {[%clk 0:02:28]}  Rhg8 {[%clk 0:01:45]} 17. g3 {[%clk 0:02:26]}  Rg4 {[%clk 0:01:44]} 18. Qe3 {[%clk 0:02:26]}  cxd5 {[%clk 0:01:28]} 19. cxd5 {[%clk 0:02:24]}  Qa6+ {[%clk 0:01:22]} 20. Kf3 {[%clk 0:02:23]}  Nxe4 {[%clk 0:00:57]} 21. Kxg4 {[%clk 0:02:15]}  f5+ {[%clk 0:00:56]} 22. Kh3 {[%clk 0:01:59]}  Rxd5 {[%clk 0:00:46]} 23. Rxf5 {[%clk 0:01:49]}  Nd2 {[%clk 0:00:25]} 24. Rxf7 {[%clk 0:01:43]}  Qc4 {[%clk 0:00:15]} 25. Bf5+ {[%clk 0:01:40]}  Kd8 {[%clk 0:00:15]} 26. Qg5+ {[%clk 0:01:39]}  Ke8 {[%clk 0:00:15]} 27. Qg8# {[%clk 0:01:38]} 1-0


[Site "https://www.chess.com"]

[Event "Titled Tuesday Blitz February 21 Late 2023"]
[White "Droin, Augustin"]
[Black "Salimova, Nurgyul"]
[WhiteFideId "45105987"]
[BlackFideId "2915138"]
[WhiteElo "2436"]
[BlackElo "2391"]
[Result "1-0"]
[Round "02"]
[TimeControl "180+2"]
[Date "2023.02.21"]
[WhiteClock "0:00:20"]
[BlackClock "0:00:03"]

1. e4 {[%clk 0:02:59]}  c6 {[%clk 0:02:59]} 2. d4 {[%clk 0:02:54]}  d5 {[%clk 0:03:00]} 3. Nc3 {[%clk 0:02:50]}  dxe4 {[%clk 0:03:01]} 4. Nxe4 {[%clk 0:02:50]}  Nf6 {[%clk 0:03:01]} 5. Nxf6+ {[%clk 0:02:47]}  exf6 {[%clk 0:03:02]} 6. Bf4 {[%clk 0:02:46]}  Be6 {[%clk 0:02:45]} 7. Qd2 {[%clk 0:02:43]}  Bd6 {[%clk 0:02:35]} 8. Bd3 {[%clk 0:02:37]}  O-O {[%clk 0:02:33]} 9. Ne2 {[%clk 0:02:36]}  Re8 {[%clk 0:02:30]} 10. O-O {[%clk 0:02:36]}  a5 {[%clk 0:02:06]} 11. Rae1 {[%clk 0:02:31]}  Na6 {[%clk 0:01:57]} 12. a3 {[%clk 0:02:11]}  Nc7 {[%clk 0:01:54]} 13. Bxd6 {[%clk 0:02:09]}  Qxd6 {[%clk 0:01:55]} 14. Nf4 {[%clk 0:02:10]}  g6 {[%clk 0:01:42]} 15. c3 {[%clk 0:01:59]}  Bb3 {[%clk 0:01:42]} 16. h4 {[%clk 0:01:53]}  h5 {[%clk 0:01:15]} 17. g3 {[%clk 0:01:47]}  Kg7 {[%clk 0:01:09]} 18. Re3 {[%clk 0:01:44]}  Rxe3 {[%clk 0:01:08]} 19. fxe3 {[%clk 0:01:45]}  f5 {[%clk 0:01:04]} 20. c4 {[%clk 0:01:39]}  a4 {[%clk 0:00:50]} 21. Qc3 {[%clk 0:01:19]}  Re8 {[%clk 0:00:32]} 22. Bb1 {[%clk 0:00:55]}  Kg8 {[%clk 0:00:20]} 23. Re1 {[%clk 0:00:50]}  b5 {[%clk 0:00:20]} 24. c5 {[%clk 0:00:49]}  Qf6 {[%clk 0:00:20]} 25. e4 {[%clk 0:00:49]}  fxe4 {[%clk 0:00:20]} 26. Rxe4 {[%clk 0:00:50]}  Rd8 {[%clk 0:00:15]} 27. Re5 {[%clk 0:00:44]}  Nd5 {[%clk 0:00:08]} 28. Nxd5 {[%clk 0:00:43]}  Rxd5 {[%clk 0:00:07]} 29. Be4 {[%clk 0:00:34]}  Rxe5 {[%clk 0:00:06]} 30. dxe5 {[%clk 0:00:35]}  Qe6 {[%clk 0:00:05]} 31. Qd4 {[%clk 0:00:34]}  Qg4 {[%clk 0:00:04]} 32. Qe3 {[%clk 0:00:30]}  Qd1+ {[%clk 0:00:02]} 33. Kh2 {[%clk 0:00:29]}  Qa1 {[%clk 0:00:02]} 34. Qd2 {[%clk 0:00:25]}  Qa2 {[%clk 0:00:02]} 35. Bxc6 {[%clk 0:00:23]}  Qb1 {[%clk 0:00:02]} 36. Bxb5 {[%clk 0:00:21]}  Qf1 {[%clk 0:00:03]} 37. Bxf1 {[%clk 0:00:20]} 1-0


[Site "https://www.chess.com"]

[Event "Titled Tuesday Blitz February 21 Late 2023"]
[White "Dourerassou, Jonathan"]
[Black "Nilsen, Tobias Lang"]
[WhiteFideId "628050"]
[BlackFideId "1521624"]
[WhiteElo "2414"]
[BlackElo "2247"]
[Result "1/2-1/2"]
[Round "02"]
[TimeControl "180+2"]
[Date "2023.02.21"]
[WhiteClock "0:00:36"]
[BlackClock "0:00:18"]

1. d4 {[%clk 0:03:00]}  d5 {[%clk 0:02:59]} 2. Bf4 {[%clk 0:02:59]}  Nf6 {[%clk 0:02:58]} 3. e3 {[%clk 0:02:59]}  e6 {[%clk 0:02:58]} 4. Nf3 {[%clk 0:02:59]}  c5 {[%clk 0:02:59]} 5. Nbd2 {[%clk 0:02:59]}  Nc6 {[%clk 0:02:57]} 6. c3 {[%clk 0:03:00]}  Bd6 {[%clk 0:02:57]} 7. Bg3 {[%clk 0:02:59]}  O-O {[%clk 0:02:58]} 8. Bd3 {[%clk 0:03:00]}  b6 {[%clk 0:02:58]} 9. Qe2 {[%clk 0:02:59]}  Bb7 {[%clk 0:02:57]} 10. Rd1 {[%clk 0:02:57]}  Ne7 {[%clk 0:02:57]} 11. e4 {[%clk 0:02:53]}  dxe4 {[%clk 0:02:55]} 12. Nxe4 {[%clk 0:02:53]}  Nxe4 {[%clk 0:02:55]} 13. Bxe4 {[%clk 0:02:53]}  Bxe4 {[%clk 0:02:55]} 14. Qxe4 {[%clk 0:02:53]}  Nd5 {[%clk 0:02:15]} 15. dxc5 {[%clk 0:02:44]}  Bxc5 {[%clk 0:02:15]} 16. O-O {[%clk 0:02:37]}  Qc8 {[%clk 0:02:03]} 17. c4 {[%clk 0:02:34]}  Nf6 {[%clk 0:02:03]} 18. Qh4 {[%clk 0:02:30]}  Rd8 {[%clk 0:01:56]} 19. Be5 {[%clk 0:02:17]}  Be7 {[%clk 0:01:52]} 20. b3 {[%clk 0:02:17]}  Qc6 {[%clk 0:01:48]} 21. h3 {[%clk 0:02:12]}  Rxd1 {[%clk 0:01:44]} 22. Rxd1 {[%clk 0:02:11]}  Rd8 {[%clk 0:01:45]} 23. Rxd8+ {[%clk 0:02:07]}  Bxd8 {[%clk 0:01:45]} 24. Qd4 {[%clk 0:02:07]}  Be7 {[%clk 0:01:42]} 25. a4 {[%clk 0:01:37]}  h6 {[%clk 0:01:33]} 26. Qd2 {[%clk 0:01:32]}  Ne4 {[%clk 0:01:28]} 27. Qe3 {[%clk 0:01:26]}  Bf6 {[%clk 0:01:11]} 28. Nd4 {[%clk 0:01:24]}  Qb7 {[%clk 0:01:01]} 29. Qf4 {[%clk 0:01:24]}  Bxe5 {[%clk 0:00:59]} 30. Qxe5 {[%clk 0:01:25]}  Nf6 {[%clk 0:00:53]} 31. Qd6 {[%clk 0:01:18]}  Qd7 {[%clk 0:00:47]} 32. Qxd7 {[%clk 0:01:12]}  Nxd7 {[%clk 0:00:48]} 33. b4 {[%clk 0:01:08]}  a5 {[%clk 0:00:49]} 34. bxa5 {[%clk 0:01:07]}  bxa5 {[%clk 0:00:49]} 35. Nb3 {[%clk 0:01:02]}  Nb6 {[%clk 0:00:50]} 36. Nxa5 {[%clk 0:01:02]}  Nxa4 {[%clk 0:00:50]} 37. Kf1 {[%clk 0:00:58]}  Kf8 {[%clk 0:00:50]} 38. Ke2 {[%clk 0:00:59]}  Ke7 {[%clk 0:00:50]} 39. Kd3 {[%clk 0:00:57]}  Kd6 {[%clk 0:00:49]} 40. Nb7+ {[%clk 0:00:53]}  Kc7 {[%clk 0:00:48]} 41. Na5 {[%clk 0:00:53]}  Kd6 {[%clk 0:00:48]} 42. Nb3 {[%clk 0:00:53]}  f5 {[%clk 0:00:41]} 43. f4 {[%clk 0:00:50]}  e5 {[%clk 0:00:38]} 44. fxe5+ {[%clk 0:00:48]}  Kxe5 {[%clk 0:00:38]} 45. Ke3 {[%clk 0:00:43]}  g5 {[%clk 0:00:37]} 46. Nd2 {[%clk 0:00:37]}  f4+ {[%clk 0:00:25]} 47. Kf3 {[%clk 0:00:37]}  Nc5 {[%clk 0:00:24]} 48. Kg4 {[%clk 0:00:36]}  Kd4 {[%clk 0:00:22]} 49. Kh5 {[%clk 0:00:35]}  Ke3 {[%clk 0:00:22]} 50. Kxh6 {[%clk 0:00:31]}  Kxd2 {[%clk 0:00:20]} 51. Kxg5 {[%clk 0:00:31]}  Ke3 {[%clk 0:00:21]} 52. h4 {[%clk 0:00:31]}  f3 {[%clk 0:00:20]} 53. gxf3 {[%clk 0:00:32]}  Kxf3 {[%clk 0:00:20]} 54. h5 {[%clk 0:00:32]}  Ke4 {[%clk 0:00:21]} 55. h6 {[%clk 0:00:33]}  Ne6+ {[%clk 0:00:21]} 56. Kf6 {[%clk 0:00:33]}  Nf8 {[%clk 0:00:22]} 57. Kg7 {[%clk 0:00:32]}  Ne6+ {[%clk 0:00:20]} 58. Kf7 {[%clk 0:00:32]}  Ng5+ {[%clk 0:00:20]} 59. Kf6 {[%clk 0:00:32]}  Nh7+ {[%clk 0:00:20]} 60. Kg6 {[%clk 0:00:32]}  Nf8+ {[%clk 0:00:21]} 61. Kg7 {[%clk 0:00:32]}  Ne6+ {[%clk 0:00:21]} 62. Kf6 {[%clk 0:00:31]}  Nf8 {[%clk 0:00:21]} 63. c5 {[%clk 0:00:32]}  Kd5 {[%clk 0:00:21]} 64. Ke7 {[%clk 0:00:32]}  Nh7 {[%clk 0:00:19]} 65. Kf7 {[%clk 0:00:32]}  Kxc5 {[%clk 0:00:19]} 66. Kg7 {[%clk 0:00:33]}  Ng5 {[%clk 0:00:19]} 67. Kg6 {[%clk 0:00:33]}  Ne6 {[%clk 0:00:19]} 68. Kf6 {[%clk 0:00:34]}  Nf8 {[%clk 0:00:19]} 69. Kg7 {[%clk 0:00:34]}  Ne6+ {[%clk 0:00:19]} 70. Kg6 {[%clk 0:00:35]}  Nf8+ {[%clk 0:00:20]} 71. Kf7 {[%clk 0:00:35]}  Nh7 {[%clk 0:00:20]} 72. Kg8 {[%clk 0:00:35]}  Ng5 {[%clk 0:00:19]} 73. Kg7 {[%clk 0:00:35]}  Kd6 {[%clk 0:00:18]} 74. Kf6 {[%clk 0:00:35]}  Nh7+ {[%clk 0:00:18]} 75. Kg6 {[%clk 0:00:35]}  Nf8+ {[%clk 0:00:18]} 76. Kf7 {[%clk 0:00:36]}  Nh7 {[%clk 0:00:17]} 77. Kg8 {[%clk 0:00:36]}  Ng5 {[%clk 0:00:17]} 78. h7 {[%clk 0:00:36]}  Nxh7 {[%clk 0:00:18]} 1/2-1/2


[Site "https://www.chess.com"]

[Event "Titled Tuesday Blitz February 21 Late 2023"]
[White "Javakhadze, Zurab"]
[Black "Haszon, David"]
[WhiteFideId "13603647"]
[BlackFideId "733610"]
[WhiteElo "2459"]
[BlackElo "2264"]
[Result "1/2-1/2"]
[Round "02"]
[TimeControl "180+2"]
[Date "2023.02.21"]
[WhiteClock "0:00:07"]
[BlackClock "0:00:13"]

1. Nf3 {[%clk 0:02:55]}  Nf6 {[%clk 0:02:59]} 2. g3 {[%clk 0:02:55]}  g6 {[%clk 0:02:59]} 3. Bg2 {[%clk 0:02:50]}  Bg7 {[%clk 0:03:00]} 4. O-O {[%clk 0:02:51]}  O-O {[%clk 0:03:01]} 5. c4 {[%clk 0:02:50]}  c6 {[%clk 0:03:00]} 6. d4 {[%clk 0:02:50]}  d5 {[%clk 0:03:00]} 7. Qb3 {[%clk 0:02:50]}  Qb6 {[%clk 0:02:50]} 8. Nc3 {[%clk 0:02:31]}  Na6 {[%clk 0:02:32]} 9. cxd5 {[%clk 0:02:12]}  Qxb3 {[%clk 0:02:25]} 10. axb3 {[%clk 0:02:11]}  Nxd5 {[%clk 0:02:22]} 11. Ne5 {[%clk 0:01:54]}  Ndb4 {[%clk 0:02:14]} 12. Rd1 {[%clk 0:01:33]}  Nc2 {[%clk 0:01:49]} 13. Rxa6 {[%clk 0:01:22]}  bxa6 {[%clk 0:01:39]} 14. Nxc6 {[%clk 0:01:21]}  Kh8 {[%clk 0:01:09]} 15. Nxe7 {[%clk 0:00:47]}  Rb8 {[%clk 0:01:05]} 16. d5 {[%clk 0:00:45]}  Nd4 {[%clk 0:00:53]} 17. Nc6 {[%clk 0:00:39]}  Nxc6 {[%clk 0:00:51]} 18. dxc6 {[%clk 0:00:40]}  Rxb3 {[%clk 0:00:51]} 19. Bd5 {[%clk 0:00:26]}  Rb4 {[%clk 0:00:45]} 20. Bf4 {[%clk 0:00:20]}  Rd4 {[%clk 0:00:39]} 21. Rxd4 {[%clk 0:00:18]}  Bxd4 {[%clk 0:00:39]} 22. c7 {[%clk 0:00:19]}  a5 {[%clk 0:00:33]} 23. Nb5 {[%clk 0:00:14]}  Bb6 {[%clk 0:00:25]} 24. b3 {[%clk 0:00:11]}  f6 {[%clk 0:00:24]} 25. Bd6 {[%clk 0:00:11]}  Re8 {[%clk 0:00:23]} 26. e3 {[%clk 0:00:10]}  Kg7 {[%clk 0:00:23]} 27. Kf1 {[%clk 0:00:10]}  Ba6 {[%clk 0:00:22]} 28. Bc4 {[%clk 0:00:09]}  Bxb5 {[%clk 0:00:20]} 29. Bxb5 {[%clk 0:00:10]}  Rc8 {[%clk 0:00:19]} 30. Ba6 {[%clk 0:00:11]}  Rxc7 {[%clk 0:00:19]} 31. Bxc7 {[%clk 0:00:11]}  Bxc7 {[%clk 0:00:20]} 32. Ke2 {[%clk 0:00:12]}  f5 {[%clk 0:00:18]} 33. Kd3 {[%clk 0:00:11]}  Kf6 {[%clk 0:00:18]} 34. f4 {[%clk 0:00:08]}  Bd6 {[%clk 0:00:17]} 35. Kd4 {[%clk 0:00:06]}  Bb4 {[%clk 0:00:16]} 36. e4 {[%clk 0:00:06]}  fxe4 {[%clk 0:00:16]} 37. Kxe4 {[%clk 0:00:06]}  Bc5 {[%clk 0:00:15]} 38. g4 {[%clk 0:00:07]}  h6 {[%clk 0:00:12]} 39. h4 {[%clk 0:00:06]}  g5 {[%clk 0:00:12]} 40. fxg5+ {[%clk 0:00:05]}  hxg5 {[%clk 0:00:13]} 41. h5 {[%clk 0:00:05]}  Kg7 {[%clk 0:00:11]} 42. Kf5 {[%clk 0:00:06]}  Kh6 {[%clk 0:00:11]} 43. Be2 {[%clk 0:00:06]}  Bb4 {[%clk 0:00:11]} 44. Ke4 {[%clk 0:00:06]}  Be1 {[%clk 0:00:11]} 45. Kd5 {[%clk 0:00:07]}  Bb4 {[%clk 0:00:12]} 46. Kc4 {[%clk 0:00:07]}  Be1 {[%clk 0:00:13]} 1/2-1/2


[Site "https://www.chess.com"]

[Event "Titled Tuesday Blitz February 21 Late 2023"]
[White "EREBUNI91"]
[Black "Skaric, Djuro"]
[BlackFideId "934569"]
[WhiteElo "2753"]
[BlackElo "2334"]
[Result "1-0"]
[Round "02"]
[TimeControl "180+2"]
[Date "2023.02.21"]
[WhiteClock "0:00:09"]
[BlackClock "0:01:32"]

1. e4 {[%clk 0:03:00]}  d6 {[%clk 0:03:00]} 2. d4 {[%clk 0:03:00]}  g6 {[%clk 0:02:59]} 3. Nc3 {[%clk 0:03:00]}  Bg7 {[%clk 0:03:00]} 4. Be3 {[%clk 0:02:59]}  Nf6 {[%clk 0:03:00]} 5. h3 {[%clk 0:02:54]}  Nc6 {[%clk 0:02:59]} 6. Qd2 {[%clk 0:02:54]}  h5 {[%clk 0:02:59]} 7. Nf3 {[%clk 0:02:52]}  a6 {[%clk 0:02:57]} 8. d5 {[%clk 0:02:31]}  Ne5 {[%clk 0:02:57]} 9. Nxe5 {[%clk 0:02:30]}  dxe5 {[%clk 0:02:57]} 10. O-O-O {[%clk 0:02:27]}  O-O {[%clk 0:02:56]} 11. f3 {[%clk 0:02:23]}  b5 {[%clk 0:02:55]} 12. g4 {[%clk 0:02:15]}  h4 {[%clk 0:02:55]} 13. Qf2 {[%clk 0:01:59]}  Bd7 {[%clk 0:02:51]} 14. Qxh4 {[%clk 0:01:56]}  b4 {[%clk 0:02:50]} 15. Nb1 {[%clk 0:01:52]}  Bb5 {[%clk 0:02:50]} 16. Qg3 {[%clk 0:01:45]}  Qd7 {[%clk 0:02:49]} 17. h4 {[%clk 0:01:41]}  Nh7 {[%clk 0:02:48]} 18. h5 {[%clk 0:01:36]}  g5 {[%clk 0:02:48]} 19. h6 {[%clk 0:01:33]}  Bf6 {[%clk 0:02:48]} 20. Nd2 {[%clk 0:01:29]}  a5 {[%clk 0:02:47]} 21. Nc4 {[%clk 0:01:26]}  a4 {[%clk 0:02:47]} 22. Nxe5 {[%clk 0:01:21]}  Qd6 {[%clk 0:02:47]} 23. Bxb5 {[%clk 0:00:58]}  Bxe5 {[%clk 0:02:45]} 24. Qf2 {[%clk 0:00:55]}  b3 {[%clk 0:02:45]} 25. a3 {[%clk 0:00:43]}  bxc2 {[%clk 0:02:45]} 26. Qxc2 {[%clk 0:00:44]}  Rab8 {[%clk 0:02:45]} 27. Qxa4 {[%clk 0:00:42]}  Qf6 {[%clk 0:02:44]} 28. Rd2 {[%clk 0:00:38]}  Qxf3 {[%clk 0:02:43]} 29. Re1 {[%clk 0:00:36]}  Nf6 {[%clk 0:02:37]} 30. Bxg5 {[%clk 0:00:32]}  Bf4 {[%clk 0:02:32]} 31. Bxf4 {[%clk 0:00:29]}  Qxf4 {[%clk 0:02:32]} 32. e5 {[%clk 0:00:29]}  Qxa4 {[%clk 0:02:28]} 33. Bxa4 {[%clk 0:00:30]}  Ne8 {[%clk 0:02:24]} 34. g5 {[%clk 0:00:30]}  Kh8 {[%clk 0:02:24]} 35. e6 {[%clk 0:00:27]}  Nd6 {[%clk 0:02:23]} 36. exf7 {[%clk 0:00:25]}  Rxf7 {[%clk 0:02:23]} 37. g6 {[%clk 0:00:25]}  Rf4 {[%clk 0:02:23]} 38. Bc2 {[%clk 0:00:23]}  Re8 {[%clk 0:02:21]} 39. Rde2 {[%clk 0:00:22]}  Rh4 {[%clk 0:02:16]} 40. h7 {[%clk 0:00:19]}  Nc8 {[%clk 0:02:12]} 41. Bd3 {[%clk 0:00:19]}  Kg7 {[%clk 0:02:11]} 42. Bf5 {[%clk 0:00:20]}  Nd6 {[%clk 0:02:10]} 43. Rxe7+ {[%clk 0:00:19]}  Rxe7 {[%clk 0:02:11]} 44. Rxe7+ {[%clk 0:00:20]}  Kf6 {[%clk 0:02:11]} 45. Rxc7 {[%clk 0:00:19]}  Nxf5 {[%clk 0:02:09]} 46. d6 {[%clk 0:00:10]}  Nxd6 {[%clk 0:01:40]} 47. g7 {[%clk 0:00:09]}  Rxh7 {[%clk 0:01:38]} 48. g8=Q {[%clk 0:00:08]}  Rxc7+ {[%clk 0:01:38]} 49. Kb1 {[%clk 0:00:08]}  Ke5 {[%clk 0:01:37]} 50. Qh8+ {[%clk 0:00:07]}  Kd5 {[%clk 0:01:37]} 51. Qh1+ {[%clk 0:00:08]}  Kc5 {[%clk 0:01:37]} 52. b4+ {[%clk 0:00:08]}  Kb6 {[%clk 0:01:37]} 53. Kb2 {[%clk 0:00:09]}  Re7 {[%clk 0:01:34]} 54. Kb3 {[%clk 0:00:09]}  Re3+ {[%clk 0:01:33]} 55. Ka4 {[%clk 0:00:10]}  Nc4 {[%clk 0:01:32]} 56. Qh6+ {[%clk 0:00:08]}  Nd6 {[%clk 0:01:32]} 57. Qxd6+ {[%clk 0:00:08]}  Kb7 {[%clk 0:01:32]} 58. Qd5+ {[%clk 0:00:09]} 1-0


[Site "https://www.chess.com"]

[Event "Titled Tuesday Blitz February 21 Late 2023"]
[White "Gerbelli Neto, Eduardo"]
[Black "Leiva, Gianmarco"]
[WhiteFideId "2103281"]
[BlackFideId "3804399"]
[WhiteElo "2114"]
[BlackElo "2392"]
[Result "0-1"]
[Round "02"]
[TimeControl "180+2"]
[Date "2023.02.21"]
[WhiteClock "0:00:53"]
[BlackClock "0:00:29"]

1. e4 {[%clk 0:02:56]}  c5 {[%clk 0:02:57]} 2. Nc3 {[%clk 0:02:55]}  Nc6 {[%clk 0:02:56]} 3. f4 {[%clk 0:02:55]}  g6 {[%clk 0:02:54]} 4. Nf3 {[%clk 0:02:55]}  Bg7 {[%clk 0:02:55]} 5. Bc4 {[%clk 0:02:55]}  e6 {[%clk 0:02:54]} 6. f5 {[%clk 0:02:56]}  d6 {[%clk 0:02:52]} 7. O-O {[%clk 0:02:51]}  Nf6 {[%clk 0:02:46]} 8. d3 {[%clk 0:02:48]}  O-O {[%clk 0:02:25]} 9. Qe1 {[%clk 0:02:42]}  d5 {[%clk 0:02:23]} 10. Bb3 {[%clk 0:02:41]}  b5 {[%clk 0:02:18]} 11. e5 {[%clk 0:02:33]}  c4 {[%clk 0:02:05]} 12. exf6 {[%clk 0:02:25]}  Bxf6 {[%clk 0:02:06]} 13. fxg6 {[%clk 0:02:20]}  fxg6 {[%clk 0:02:03]} 14. Bh6 {[%clk 0:02:14]}  Rf7 {[%clk 0:02:01]} 15. dxc4 {[%clk 0:02:10]}  dxc4 {[%clk 0:01:58]} 16. Rd1 {[%clk 0:02:08]}  Qe7 {[%clk 0:01:35]} 17. Kh1 {[%clk 0:01:23]}  cxb3 {[%clk 0:01:33]} 18. axb3 {[%clk 0:01:23]}  Bg7 {[%clk 0:00:50]} 19. Bg5 {[%clk 0:01:19]}  Qf8 {[%clk 0:00:44]} 20. Qe4 {[%clk 0:01:10]}  Bb7 {[%clk 0:00:41]} 21. Qxe6 {[%clk 0:01:10]}  Re8 {[%clk 0:00:35]} 22. Qh3 {[%clk 0:01:02]}  a6 {[%clk 0:00:31]} 23. Ne4 {[%clk 0:00:53]}  Rxe4 {[%clk 0:00:29]} 0-1


[Site "https://www.chess.com"]